Cogmind - Beta 16.1 @@@ ROGUE MODE // 2026.02.23 @ 09:34:58 Player: McSaucyNugget Result: Self-destructed Performance ------------- Evolutions (4) 2000 Regions Visited (8) 1600 Robots Destroyed (32) 160 Value Destroyed (440) 440 Prototype IDs (0) 0 Alien Tech Used (0) 0 Bonus (-166) -166 TOTAL SCORE: 4034 Bonus ------- Follower Combat Kills 14 Friendly Fire -180 Cogmind --------- Core Integrity 479/850 Matter 226/300 Energy 100/100 System Corruption 0% Temperature Cool (0) Movement Core (100) Ox1 Location -6/Lower Caves Parts ------- > --- POWER (5) -------- (None) > --- PROPULSION (3) --- Advanced Heavy Treads > --- UTILITY (3) ------ Improved Kinecellerator System Restoration Module > --- WEAPON (4) ------- (None) > --- INVENTORY (5) ---- Compact Battery (200) Structural Scanner Utility Shielding Hacking Suite Scrap Shield Fragment (48) Peak State ------------ > --- POWER ------------ (None) > --- PROPULSION ------- Advanced Heavy Treads > --- UTILITY ---------- Improved Kinecellerator System Restoration Module Drone Bay > --- WEAPON ----------- Mining Laser > --- INVENTORY -------- Structural Scanner Utility Shielding Hacking Suite Scrap Shield Fragment [Rating: 32] Favorites ----------- Power Light Ion Engine Engine Light Ion Engine Propulsion Aluminum Leg Treads Advanced Heavy Treads Leg Aluminum Leg Wheel Compact Wheel Hover Unit Combat Antigrav System Utility Small Storage Unit Device Improved Kinecellerator Storage Small Storage Unit Processor Terrain Scan Processor Protection Utility Shielding Weapon Small Laser Energy Gun Small Laser Ballistic Gun Light Assault Rifle Ballistic Cannon Improved Light Cannon Special Weapon Mining Laser Build | -11 -10 -10 -10 -9 -6 -6 -6 -6 ------- Run | Yrd Mat Min Sub Scr Fac Was Fac Low Slots Evolved 8 | . . . . . 8 . . . Power 4 | . . . . . 4 . . . Propulsion 1 | . . . . . 1 . . . Utility 1 | . . . . . 1 . . . Weapon 2 | . . . . . 2 . . . Parts Attached 31 | 9 4 6 1 . 2 6 2 1 Power 4 | 1 . 2 . . . 1 . . Engine 4 | 1 . 2 . . . 1 . . Core . | . . . . . . . . . Reactor . | . . . . . . . . . Propulsion 11 | 4 2 2 . . 1 2 . . Treads 1 | . . . . . . 1 . . Leg 4 | . 2 2 . . . . . . Wheel 5 | 4 . . . . 1 . . . Hover 1 | . . . . . . 1 . . Flight . | . . . . . . . . . Utility 9 | 2 . 2 . . 1 2 2 . Device 6 | 1 . 1 . . . 2 2 . Storage 1 | 1 . . . . . . . . Processor 1 | . . . . . 1 . . . Hackware . | . . . . . . . . . Protection 1 | . . 1 . . . . . . Artifact . | . . . . . . . . . Weapon 7 | 2 2 . 1 . . 1 . 1 Energy Gun 2 | 1 . . . . . 1 . . Energy Cannon . | . . . . . . . . . Ballistic Gun 2 | 1 1 . . . . . . . Ballistic Cannon 2 | . 1 . 1 . . . . . Launcher . | . . . . . . . . . Special Weapon 1 | . . . . . . . . 1 Impact Weapon . | . . . . . . . . . Slashing Weapon . | . . . . . . . . . Piercing Weapon . | . . . . . . . . . Special Melee Weapon . | . . . . . . . . . Unidentified Prototypes . | . . . . . . . . . Parts Lost 15 | . 1 3 1 . 5 4 . 1 Power 1 | . . . 1 . . . . . Propulsion 4 | . 1 1 . . 2 . . . Utility 5 | . . 1 . . . 3 . 1 Weapon 5 | . . 1 . . 3 1 . . Highest Loss Streak 5 | . 1 2 1 . 5 3 . 1 To Critical Strikes . | . . . . . . . . . Average Backups 3 | . 1 3 3 4 4 4 4 3 Power . | . . . . . . . . . Propulsion . | . . . . . . . . . Utility 1 | . . . 1 1 1 2 3 3 Weapon 1 | . 1 2 2 3 2 1 1 . Tool/Special . | . . . . . . . . . Unused Backups 3 | 1 . . . . . . . 2 Power . | . . . . . . . . . Propulsion . | . . . . . . . . . Utility 3 | 1 . . . . . . . 2 Weapon . | . . . . . . . . . Tool/Special . | . . . . . . . . . Average Slot Usage (%) 55 | . 97 89 79 71 34 20 18 23 Engine 5 | . 14 14 8 . . 2 . . Treads 2 | . . . . . . . 6 6 Leg 13 | . 19 26 28 28 10 . . . Wheel 1 | . 6 . . . . 2 . . Device 9 | . 14 9 . . . 1 11 17 Storage 7 | . 14 14 14 14 6 3 . . Protection 3 | . . 3 14 14 6 1 . . Energy Gun 3 | . 14 7 . . . 2 . . Ballistic Gun 1 | . 11 . . . 1 . . . Ballistic Cannon 5 | . 2 14 14 14 6 . . . Peak Build Rating 32 | 9 10 10 9 8 14 28 31 32 Average Rating 14 | 6 9 8 8 8 8 10 26 29 On Entrance 11 | . 9 10 9 8 8 5 22 31 Avg Prop Armor Cover (%) 26 | . . . . . . 6 31 27 Naked Turns 72 | . . . . . . 72 . . Heaviest Build 23 | 11 14 16 13 9 14 23 12 12 Greatest Support 25 | 20 20 25 25 25 25 16 3 3 Greatest Overweight (x) 3 | 3 1 1 . . 1 2 3 3 Average Overweight (x) . | . . . . . . . 1 1 Largest Inventory Capacity 8 | 8 8 8 8 8 8 8 5 5 Average Capacity 6 | 7 8 8 8 8 8 6 5 5 Most Carried 8 | 5 3 6 5 5 8 7 5 5 Average Carried 3 | . 1 3 4 5 5 5 5 4 Final Capacity 8 | 8 8 8 8 8 8 5 5 5 Final Carried 6 | . 3 3 5 5 6 5 5 5 Class Distribution -------------------- 85% | Mutant 14% | Scavenger-Mutant Dominant Class ---------------- Scavenger-Mutant | -10/Materials Scavenger-Mutant | -10/Mines Mutant | -10/Subcaves Mutant | -9/Scraptown Mutant | -6/Factory Mutant | -6/Waste Mutant | -6/Factory Mutant | -6/Lower Caves Resources | -11 -10 -10 -10 -9 -6 -6 -6 -6 ----------- Run | Yrd Mat Min Sub Scr Fac Was Fac Low Matter Collected 774 | 313 80 158 46 . 73 . . 104 Remotely . | . . . . . . . . . Salvage Created 929 | 359 168 235 . . 167 . . . Parts 72 | 38 11 12 . . 11 . . . Haulers Intercepted . | . . . . . . . . . Recyclers Shooed 1 | 1 . . . . . . . . Parts Field Recycled . | . . . . . . . . . Retrieved Matter . | . . . . . . . . . Parts Self-Destructed 5 | . . . 5 . . . . . Prevented . | . . . . . . . . . Parts Restored . | . . . . . . . . . Kills | -11 -10 -10 -10 -9 -6 -6 -6 -6 ------- Run | Yrd Mat Min Sub Scr Fac Was Fac Low Combat Hostiles Destroyed 8 | . 4 3 1 . . . . . Guns 4 | . 4 . . . . . . . Cannons 4 | . . 3 1 . . . . . Classes Destroyed 10 | 3 3 1 1 . 2 . . . Worker 5 | 4 . 1 . . . . . . Builder 2 | . . 1 . . 1 . . . Tunneler 9 | 9 . . . . . . . . Recycler 3 | 1 . 1 . . 1 . . . Mechanic 1 | . . . . . 1 . . . Operator 1 | . . . . . 1 . . . Watcher 2 | . 2 . . . . . . . Swarmer 2 | . 1 1 . . . . . . Grunt 5 | . 3 2 . . . . . . Subdweller 1 | . . . 1 . . . . . Thug 1 | . . 1 . . . . . . Best Kill Streak 5 | 5 3 3 1 . 3 . . . Combat Bots Only 3 | . 3 2 1 . . . . . Max Kills in Single Turn 2 | 2 1 1 1 . 1 . . . Gunslinging . | . . . . . . . . . Exploded . | . . . . . . . . . Melee . | . . . . . . . . . Uniques/NPCs Destroyed . | . . . . . . . . . Combat | -11 -10 -10 -10 -9 -6 -6 -6 -6 -------- Run | Yrd Mat Min Sub Scr Fac Was Fac Low Hostile Shots Fired 172 | . 34 48 19 . 39 5 . 27 Missed 43 | . 8 14 5 . 8 . . 8 Hits 129 | . 26 34 14 . 31 5 . 19 Melee 6 | . . . . . . 5 . 1 Projectile 123 | . 26 34 14 . 31 . . 18 Critical Strikes 4 | . 1 . . . . 3 . . Damage Taken 1835 | . 263 381 301 . 430 236 . 224 Core 545 | . 27 37 110 . 119 236 . 16 Absorbed by Shields 12 | . . . . . . 12 . . Redirected to Shielding 17 | . . . 5 . 12 . . . Core Remaining (%) 65 | 100 . . . 30 . . . . Volleys Fired 119 | 43 16 28 17 . 14 . . 1 Largest 3 | 2 2 2 1 . 3 . . 1 Hottest 100 | 60 73 73 33 . 86 . . 100 Shots Fired 202 | 81 32 47 17 . 24 . . 1 Gun 138 | 81 31 19 . . 7 . . . Cannon 63 | . 1 28 17 . 17 . . . Launcher . | . . . . . . . . . Special 1 | . . . . . . . . 1 Kinetic 124 | 39 16 28 17 . 24 . . . Thermal 78 | 42 16 19 . . . . . 1 Explosive . | . . . . . . . . . Electromagnetic . | . . . . . . . . . Robot Hit Streak 8 | 8 4 6 7 . 8 . . 1 Robot Miss Streak 5 | 4 5 5 2 . 4 . . . Penetration Max . | . . . . . . . . . Secondary Targets 1 | . 1 . . . . . . . Max Gunslinging Chain 1 | . 1 . . . . . . . Shots Hit Robots 111 | 44 16 23 13 . 14 . . 1 Core Hits 56 | 19 13 12 2 . 9 . . 1 Critical Kills . | . . . . . . . . . Critical Parts Destroyed . | . . . . . . . . . Critical Strikes 2 | . . 1 . . 1 . . . Blast 2 | . . 1 . . 1 . . . Melee Attacks . | . . . . . . . . . Impact . | . . . . . . . . . Slashing . | . . . . . . . . . Piercing . | . . . . . . . . . Sneak Attacks . | . . . . . . . . . Combat Hostiles . | . . . . . . . . . Follow-up Attacks . | . . . . . . . . . Damage Inflicted 1710 | 450 208 468 292 . 268 . . 24 Guns 776 | 450 180 126 . . 20 . . . Cannons 902 | . 23 339 292 . 248 . . . Explosions . | . . . . . . . . . Melee . | . . . . . . . . . Ramming 8 | . 5 3 . . . . . . Kinetic 1164 | 162 103 339 292 . 268 . . . Thermal 538 | 288 100 126 . . . . . 24 Explosive . | . . . . . . . . . Electromagnetic . | . . . . . . . . . Impact . | . . . . . . . . . Slashing . | . . . . . . . . . Piercing . | . . . . . . . . . Highest Corruption . | . . . . . . . . . Average Corruption . | . . . . . . . . . Corruption Purged . | . . . . . . . . . Corruption Blocked . | . . . . . . . . . Overload Shots . | . . . . . . . . . Overflow Damage 2 | . . . . . 2 . . . Projectiles 2 | . . . . . 2 . . . Explosions . | . . . . . . . . . Melee . | . . . . . . . . . Knockbacks 9 | . . 4 3 . 2 . . . Impact . | . . . . . . . . . Kinetic 9 | . . 4 3 . 2 . . . Secondary . | . . . . . . . . . Self-Inflicted Damage . | . . . . . . . . . Shots . | . . . . . . . . . Rammed . | . . . . . . . . . Targets Rammed 5 | . 3 2 . . . . . . Kicked 5 | . 3 2 . . . . . . Crushed . | . . . . . . . . . Highest Temperature 219 | 60 127 219 . . . . . . Average Temperature 54 | 22 47 97 . . . . . . Received Heat Transfer 339 | . 93 162 84 . . . . . Siege Activations . | . . . . . . . . . Martial Activations . | . . . . . . . . . Shielding Activations . | . . . . . . . . . Robots Disrupted . | . . . . . . . . . Combat Hostiles . | . . . . . . . . . Robots Corrupted . | . . . . . . . . . Combat Hostiles . | . . . . . . . . . Parts Fried . | . . . . . . . . . Impact Corruptions . | . . . . . . . . . Robots Melted . | . . . . . . . . . Combat Hostiles . | . . . . . . . . . Parts Melted 1 | . . 1 . . . . . . Heat Transferred 1200 | 650 225 275 . . . . . 50 Parts Sabotaged . | . . . . . . . . . Parts Stolen 1 | . . . . . . . . 1 Parts Stripped . | . . . . . . . . . Power Chain Reactions . | . . . . . . . . . Alert | -11 -10 -10 -10 -9 -6 -6 -6 -6 ------- Run | Yrd Mat Min Sub Scr Fac Was Fac Low Maximum Alert Level . | . . . . . . . . . Low Security (%) 100 | 100 100 100 . . 100 100 100 . Level 1 . | . . . . . . . . . Level 2 . | . . . . . . . . . Level 3 . | . . . . . . . . . Level 4 . | . . . . . . . . . Level 5 . | . . . . . . . . . High Security . | . . . . . . . . . Max Security . | . . . . . . . . . Peak Influence 57 | 10 57 54 . . 10 . . . Initial . | . . . . . . . . . Average 7 | 1 18 12 . . 1 . . . Influence Increases 365 | 70 104 141 . . 20 . . 30 Destroy 0b10 Robot/C 180 | . 80 100 . . . . . . Destroy 0b10 Robot/NC 115 | 70 10 15 . . 20 . . . Destroy Leader 34 | . 14 20 . . . . . . Allied During Kill 3 | . . 3 . . . . . . Destroy Structure 3 | . . 3 . . . . . . Lose Combat Pursuer 30 | . . . . . . . . 30 Influence Decreases 365 | 70 104 141 . . 20 . . 30 Time Decay 344 | 70 94 130 . . 20 . . 30 Lost Part 21 | . 10 11 . . . . . . Squads Dispatched 2 | . 1 . . . 1 . . . Investigation 1 | . 1 . . . . . . . Extermination . | . . . . . . . . . Reinforcement 1 | . . . . . 1 . . . Assault . | . . . . . . . . . Garrison . | . . . . . . . . . Intercept . | . . . . . . . . . Searches Triggered . | . . . . . . . . . Construction Impeded . | . . . . . . . . . Haulers Reinforced . | . . . . . . . . . Active Scanning Responses . | . . . . . . . . . Cargo Convoy Interrupts . | . . . . . . . . . Stealth | -11 -10 -10 -10 -9 -6 -6 -6 -6 --------- Run | Yrd Mat Min Sub Scr Fac Was Fac Low Distress Signals 1 | . 1 . . . . . . . Communications Jammed . | . . . . . . . . . Distress Signals . | . . . . . . . . . Times Spotted 32 | . 9 5 1 . 6 6 . 5 Peak Tracking Total 6 | . 5 3 1 . 4 6 . 2 Tactical Retreats 2 | . . . . . . 1 . 1 Traps | -11 -10 -10 -10 -9 -6 -6 -6 -6 ------- Run | Yrd Mat Min Sub Scr Fac Was Fac Low Traps Triggered 2 | . 1 . . . 1 . . . Indirectly . | . . . . . . . . . Trap Hack Attempts . | . . . . . . . . . Triggered . | . . . . . . . . . Disarmed . | . . . . . . . . . Reprogrammed . | . . . . . . . . . Reused . | . . . . . . . . . Traps Extracted . | . . . . . . . . . Installed . | . . . . . . . . . Triggered . | . . . . . . . . . Machines | -11 -10 -10 -10 -9 -6 -6 -6 -6 ---------- Run | Yrd Mat Min Sub Scr Fac Was Fac Low Machines Disabled . | . . . . . . . . . Max in Single Turn . | . . . . . . . . . Machines Repaired . | . . . . . . . . . Machines Dismantled . | . . . . . . . . . Machines Sabotaged . | . . . . . . . . . Overloaded Fab Kills . | . . . . . . . . . Hacking | -11 -10 -10 -10 -9 -6 -6 -6 -6 --------- Run | Yrd Mat Min Sub Scr Fac Was Fac Low Machines Accessed 1 | . 1 . . . . . . . Terminals . | . . . . . . . . . Fabricators . | . . . . . . . . . Repair Stations . | . . . . . . . . . Recycling Units 1 | . 1 . . . . . . . Scanalyzers . | . . . . . . . . . Garrison Access . | . . . . . . . . . Total Hacks 1 | . 1 . . . . . . . Successful 1 | . 1 . . . . . . . Failed . | . . . . . . . . . Catastrophic . | . . . . . . . . . Database Lockouts . | . . . . . . . . . Manual . | . . . . . . . . . Terminals . | . . . . . . . . . Fabricators . | . . . . . . . . . Repair Stations . | . . . . . . . . . Recycling Units 1 | . 1 . . . . . . . Scanalyzers . | . . . . . . . . . Garrison Access . | . . . . . . . . . Terminal Hacks . | . . . . . . . . . Fabricator Hacks . | . . . . . . . . . Repair Station Hacks . | . . . . . . . . . Recycling Unit Hacks 1 | . 1 . . . . . . . Report Inventory 1 | . 1 . . . . . . . Scanalyzer . | . . . . . . . . . Garrison Access Hacks . | . . . . . . . . . Unauthorized Hacks . | . . . . . . . . . Terminals . | . . . . . . . . . Fabricators . | . . . . . . . . . Repair Stations . | . . . . . . . . . Recycling Units . | . . . . . . . . . Scanalyzers . | . . . . . . . . . Garrison Access . | . . . . . . . . . Data Cores Recovered . | . . . . . . . . . Used . | . . . . . . . . . Hacking Detections . | . . . . . . . . . Full Trace Events . | . . . . . . . . . Feedback Events . | . . . . . . . . . Feedback Blocked . | . . . . . . . . . Robot Schematics Acquired . | . . . . . . . . . Robots Built . | . . . . . . . . . Authchips . | . . . . . . . . . Time . | . . . . . . . . . Total Robot Build Rating . | . . . . . . . . . Part Schematics Acquired . | . . . . . . . . . Parts Built . | . . . . . . . . . Authchips . | . . . . . . . . . Time . | . . . . . . . . . Total Part Build Rating . | . . . . . . . . . Part Studies Acquired . | . . . . . . . . . Parts Repaired . | . . . . . . . . . Time . | . . . . . . . . . Parts Recycled . | . . . . . . . . . Recycled Matter . | . . . . . . . . . Retrieved Matter . | . . . . . . . . . Retrieved Components . | . . . . . . . . . Parts Scanalyzed . | . . . . . . . . . Part Schematics Acquired . | . . . . . . . . . Parts Damaged . | . . . . . . . . . Bothacking | -11 -10 -10 -10 -9 -6 -6 -6 -6 ------------ Run | Yrd Mat Min Sub Scr Fac Was Fac Low Used RIF Installer . | . . . . . . . . . Robots Hacked . | . . . . . . . . . Non-combat . | . . . . . . . . . Combat . | . . . . . . . . . Robot Hacks Applied . | . . . . . . . . . Relay Couplers Released . | . . . . . . . . . Fabnet Peak Effective % . | . . . . . . . . . Robots Rewired . | . . . . . . . . . Allies Hacked . | . . . . . . . . . Hacks Repelled . | . . . . . . . . . Allies | -11 -10 -10 -10 -9 -6 -6 -6 -6 -------- Run | Yrd Mat Min Sub Scr Fac Was Fac Low Total Allies 1 | . . 1 . . . . . . Largest Group 1 | . . 1 . . . . . . Highest-Rated Group 31 | . . 31 . . . . . . Highest-Rated Ally 31 | . . 31 . . . . . . Total Orders . | . . . . . . . . . Ally Attacks 7 | . . 7 . . . . . . Total Damage 83 | . . 83 . . . . . . Kills 2 | . . 2 . . . . . . Allies Corrupted . | . . . . . . . . . Allies Melted . | . . . . . . . . . Intel | -11 -10 -10 -10 -9 -6 -6 -6 -6 ------- Run | Yrd Mat Min Sub Scr Fac Was Fac Low Active Infowar (turns) 858 | 264 273 321 . . . . . . Terrain 607 | 264 273 70 . . . . . . Structural 251 | . . 251 . . . . . . Robot Analysis Total . | . . . . . . . . . Derelict Logs Recovered 1 | . . 1 . . . . . . Drone Launches . | . . . . . . . . . Drone Recoveries . | . . . . . . . . . Exploration | -11 -10 -10 -10 -9 -6 -6 -6 -6 ------------- Run | Yrd Mat Min Sub Scr Fac Was Fac Low Turns Passed 2708 | 367 273 467 193 237 104 236 99 732 Spaces Moved 1974 | 220 190 300 130 198 55 314 78 489 Core 931 | 100 . . . . 16 248 78 489 Treads . | . . . . . . . . . Legs 816 | . 149 300 130 198 39 . . . Wheels 182 | 120 41 . . . . 21 . . Hover 45 | . . . . . . 45 . . Flight . | . . . . . . . . . Fastest Speed 50 | 50 80 120 120 120 100 50 100 100 Average Speed 113 | 78 113 123 120 120 114 71 117 145 Slowest Speed 200 | 200 190 190 120 120 120 155 200 200 Overloaded Moves . | . . . . . . . . . Propulsion Burnouts . | . . . . . . . . . Robots Hopped . | . . . . . . . . . Potential Cave-ins . | . . . . . . . . . Cave-ins Triggered . | . . . . . . . . . Exploration Rate (%) 30 | 4 29 61 13 29 1 74 4 59 Regions Visited 8 Branch Regions 4 Pre-discovered Areas 1 | . . 1 . . . . . . Known Exits Taken . | . . . . . . . . . Unknown Exits Taken 6 | 1 1 1 1 1 . . 1 . Scrap Searched 3 | . . 2 . . . . . 1 Spaces Dug . | . . . . . . . . . Terrain Destroyed 3 | . . 3 . . . . . . Melee . | . . . . . . . . . Projectile 3 | . . 3 . . . . . . AOE . | . . . . . . . . . Terrain Rammed . | . . . . . . . . . Walls Destroyed . | . . . . . . . . . Machines Disabled . | . . . . . . . . . Actions | -11 -10 -10 -10 -9 -6 -6 -6 -6 --------- Run | Yrd Mat Min Sub Scr Fac Was Fac Low Total 2246 | 342 216 349 149 197 78 324 85 506 Wait 76 | 56 . . . . . . 6 14 Move 1967 | 219 189 299 129 197 55 313 77 489 Hop . | . . . . . . . . . Pick Up 32 | 10 4 8 2 . 4 3 . 1 Fast Attach 5 | . . . . . . 3 2 . Attach 22 | 10 1 2 . . 4 4 . 1 Detach 2 | 1 . . . . 1 . . . Swap 9 | . 3 4 1 . . 1 . . Drop 9 | 3 . 6 . . . . . . Fire 119 | 43 16 28 17 . 14 . . 1 Melee . | . . . . . . . . . Ram . | . . . . . . . . . Kick 5 | . 3 2 . . . . . . Crush . | . . . . . . . . . Escape Stasis . | . . . . . . . . . Rewire . | . . . . . . . . . Trap . | . . . . . . . . . Miscellaneous . | . . . . . . . . . Route ------- -11/Scrapyard -10/Materials -10/Mines (discovered 2 exits: [*Mat] / [*Sub]) -10/Subcaves -9/Scraptown -6/Factory -6/Waste -6/Factory -6/Lower Caves History --------- Turn | Location | Event 9 | -11/Scrapyard | Discovered new exit (range 15) 368 | -11/Scrapyard | Entered Materials 383 | -10/Materials | Build established: Mutant 616 | -10/Materials | Discovered new exit (range 15) 641 | -10/Materials | Entered Mines 651 | -10/Mines | Discovered new exit (range 9) 792 | -10/Mines | Received a Mining Laser from a helpful Derelict 874 | -10/Mines | Learned location of Zion (-6) 1095 | -10/Mines | Discovered new exit (range 9) 1108 | -10/Mines | Entered Subcaves 1109 | -10/Subcaves | Approached by a straggling Scientist 1133 | -10/Subcaves | Shifting Twisted Machinery released Battle Cannon 1205 | -10/Subcaves | Core integrity fell below 50% 1301 | -10/Subcaves | Entered Scraptown 1465 | -9/Scraptown | Heard Great Nut preacher, LISTEN AND RECITE! 1514 | -9/Scraptown | Discovered new exit (range 13) 1538 | -9/Scraptown | Entered Factory 1538 | -6/Factory | Evolved 8 slots: Power x4, Propulsion x1, Utility x1, Weapon x2 1642 | -6/Factory | Sucked down chute 1642 | -6/Factory | Entered Waste 1656 | -6/Waste | Lost 5 parts (2n3w) 1728 | -6/Waste | Spotted C-40 Crusher 1731 | -6/Waste | Spotted C-40 Crusher 1738 | -6/Waste | Spotted C-40 Crusher 1755 | -6/Waste | Spotted C-40 Crusher 1756 | -6/Waste | Crushed by Compactor (1 part destroyed, 2 dropped) 1758 | -6/Waste | Spotted C-40 Crusher 1759 | -6/Waste | Crushed by Compactor (1 part destroyed, 1 dropped) 1762 | -6/Waste | Crushed by Compactor (1 part destroyed, 1 dropped) 1793 | -6/Waste | Lost 3 parts (2u1w) 1801 | -6/Waste | Crushed by Compactor (1 part destroyed) 1831 | -6/Waste | Spotted C-40 Crusher 1865 | -6/Waste | Discovered new exit (range 11) 1878 | -6/Waste | Entered Factory 1882 | -6/Factory | Noticed a derelict Sapper rigging charges 1959 | -6/Factory | Discovered new exit (range 10) 1977 | -6/Factory | Entered Lower Caves 2299 | -6/Lower Caves | Encountered a Warlord checkpoint 2709 | -6/Lower Caves | Self-destructed Last Messages --------------- 01959_ EXIT=FOUND LOCATION=UNKNOWN GOAL=ESCAPE 01984_ Mining Laser ripped off. 02170_ Searching scrap... 02170_ Found Datajack. 02170_ Found 68 Matter. 02171_ Acquired 68 matter. 02299_ 8C-KHU(M): "You haven't seen any Assembled, have you?" 02411_ Penetrated by Slug. 02424_ Slug penetrates Wall. 02428_ Drone Bay destroyed. 02430_ Slug penetrates Wall. 02431_ Slug penetrates 8C-KHU(M). 02433_ Slug penetrates Wall. 02623_ Acquired 36 matter. 02625_ Acquired Com. Battery. 02709_ Penetrated by Slug. 02709_ Slug penetrates Wall. Map ----- +----------------------------------------------------+ | | | ?????????????????????????????????????????????????? | | ?????????????????????????????????????????????????? | | ?????????????????????????????????????????????????? | | ?????????????????????????????????????????????????? | | ?????????????????????????????????????????????????? | | ?????????????????????????????????????????????????? | | ?????????????????????????????????????????????????? | | ?????????????????????????????????????????????????? | | ?????????????????????????????????????????????????? | | ?????????????????????????????????????????????????? | | ?????????????????????????????????????????????????? | | ?????????????????????????????????????????????????? | | ?????????????????????????????????????????????????? | | ?????????????????????????????????????????????????? | | ??????????????????????????????????###????????????? | | ?????????????????????????????????## ##???????????? | | ?????????????????????????????????# ##??#####???? | | ????????????????????????????????## #### #???? | | ???????????????????????????????## ## #?##? | | ???????????????????????????????# ## ### #? | | ???????????????????????????????## ## #? | | ???????????#???????????????????## #? | | ???????????# ############?### ####### ##? | | ??????????# #?# % #???### #?? | | ??????? h @ ### #?????## #?? | | ??????? h ####; ######## #?? | | ????????## ????## # #?? | | ?????????## ??????## #?? | | ????????? ?????????## ##### #? | | ?????????## ???????????# #???#####? | | ??????????# ???????????## ### ##????????? | | ??????????##????????????## #?# #?????????? | | ???????????????????????## #?# #???###???? | | ??????????????????????## ### #??? #???? | | ????????????????????### ## #?## ##??? | | ???????????????????## # ### # #??? | | ???????????????????# # #??? | | ???????????????????# ### ##???? | | ??????????????????# ######?## ### ## # ##??? | | ???????????????? ????###?# ###### ## #??? | | ?????????????# ???### #?# #??# #### # #??? | | ?????????????#### ??## #?# ! #??# #### ##?? | | ???????????????# ???# #####%!#??# # #?? | | ??????#####????###????# ####* #??# # #?? | | ??????? #?####?????# #??## # #?? | | ???????? ## ##????# #?### # ##?? | | ????????? #????# ####### ## # #??? | | ??????????? ##???# #####???## #? #??? | | ?????????????# ##??# #???????# ##?# # #?? | +----------------------------------------------------+ Best States ------------- Heat Dissipation 37 Energy Generation 14 Energy Capacity 250 Matter Stores 300 Matter Capacity 300 Sight Range 16 Terrain Scan Range 16 Terrain Scan Density 85 Utility Shielding 33 Evasion (%) 55 Kinecelleration 40 Item Schematics ----------------- None Robot Schematics ------------------ None Fabricated ------------ Nothing Repaired ---------- Nothing Studied --------- None Alien Tech Used ----------------- None Achievements -------------- Civilization 2243 DATA ERROR: Steam Global Achievement% For Emergencies Only Organ Harvest Physics Hates This One Trick Challenges ------------ None Game ------ Seed ShadeArmoredLaser Manual? 0 Play Time 00:31:31 Cumulative 34.1 hours Start 2026.02.21 @ 19:48:09 End 2026.02.23 @ 09:34:58 Sessions 3 Manual Loads 0 Difficulty Rogue Special Mode None Game No. 28 Rogue 28 Adventurer 0 Explorer 0 Win Type - Total 3 Types 2/0/1/0/0/0/0/0/0/0 Lore% 27 Gallery% 33 Achievement% 25 Wizard Run 0 Options --------- Layout 1 ASCII 0 Keyboard 0 Movement Mouse Keybinds 0 Fullscreen 1 Font 24/Smallcaps Map View 50x35 Zoom Use 0% Tactical HUD 1 Map Filters NONE Filters NONE Steam 1 RUN: 4cc669c1-b269-42d3-9686-c21a5667eea9